fUSD/lending_fUSD_20260322
["ID","MTS","AMOUNT","RATE_DAILY","PERIOD"]
[408740186,1774183853437,-1000.0,0.0004,2]
[408740187,1774183853447,-1000.0,0.0004,2]
[408740188,1774183853456,-1000.0,0.0004,2]
[408740189,1774183853465,-2084.79,0.0004,120]
[408740190,1774183853477,-1000.0,0.0004,2]
[408740191,1774183853489,-1000.0,0.0004,2]
[408740192,1774183853499,-1000.0,0.0004,2]
[408740193,1774183853510,-227.1,0.0004,120]
[408740194,1774183853519,-151.13,0.0004,120]
[408740195,1774183853528,-187.45,0.0004,120]
[408740196,1774183853538,-220.76,0.0004,120]
[408740197,1774183853546,-575.99,0.0004,120]
[408740198,1774183853556,-178.51,0.0004,120]
[408740199,1774183853565,-1000.0,0.0004,2]
[408740200,1774183853575,-160.0,0.0004,120]
[408740201,1774183853585,-155.0,0.0004,120]
[408740202,1774183853595,-1000.0,0.0004,2]
[408740203,1774183853607,-1000.0,0.0004,2]
[408740204,1774183853618,-1000.0,0.0004,2]
[408740205,1774183853629,-1000.0,0.0004,2]
[408740206,1774183853640,-164.0,0.0004,120]
[408740207,1774183853650,-1000.0,0.0004,2]
[408740208,1774183853661,-1000.0,0.0004,2]
[408740209,1774183853670,-1000.0,0.0004,2]
[408740210,1774183853680,-1000.0,0.0004,2]
[408740211,1774183853689,-1000.0,0.0004,2]
[408740212,1774183853699,-297.84,0.0004,2]
[408740213,1774183853708,-1000.0,0.0004,2]
[408740214,1774183853717,-153.0,0.0004,120]
[408740215,1774183853726,-1990.0,0.0004,120]
[408740216,1774183853735,-1000.0,0.0004,2]
[408740217,1774183853745,-1000.0,0.0004,2]
[408740218,1774183853754,-1000.0,0.0004,2]
[408740219,1774183853763,-1000.0,0.0004,2]
[408740220,1774183853773,-1000.0,0.0004,2]
[408740221,1774183853782,-1000.0,0.0004,2]
[408740222,1774183853790,-1000.0,0.0004,2]
[408740223,1774183853799,-151.31,0.0004,2]
[408740224,1774183853808,-151.31,0.0004,2]
[408740225,1774183853817,-151.31,0.0004,2]
[408740226,1774183853827,-151.31,0.0004,2]
[408740227,1774183853835,-151.31,0.0004,2]
[408740228,1774183853845,-151.31,0.0004,2]
[408740229,1774183853854,-151.31,0.0004,2]
[408740230,1774183853863,-151.31,0.0004,2]
[408740231,1774183853872,-151.31,0.0004,2]
[408740232,1774183853881,-310.3594766,0.0004,30]
[408740233,1774183853891,-151.31,0.0004,2]
[408740234,1774183853900,-151.31,0.0004,2]
[408740235,1774183853910,-151.31,0.0004,2]
[408740236,1774183853919,-1000.0,0.0004,2]
[408740237,1774183853931,-151.31,0.0004,2]
[408740238,1774183853941,-151.31,0.0004,2]
[408740239,1774183853950,-151.31,0.0004,2]
[408740240,1774183853960,-151.31,0.0004,2]
[408740241,1774183853970,-151.31,0.0004,2]
[408740242,1774183853980,-151.31,0.0004,2]
[408740243,1774183853988,-151.31,0.0004,2]
[408740244,1774183853997,-151.31,0.0004,2]
[408740245,1774183854007,-151.31,0.0004,2]
[408740246,1774183854016,-151.31,0.0004,2]
[408740247,1774183854025,-151.31,0.0004,2]
[408740248,1774183854034,-151.31,0.0004,2]
[408740249,1774183854043,-151.31,0.0004,2]
[408740250,1774183854053,-151.31,0.0004,2]
[408740251,1774183854062,-151.31,0.0004,2]
[408740252,1774183854071,-151.31,0.0004,2]
[408740253,1774183854081,-151.31,0.0004,2]
[408740254,1774183854090,-151.31,0.0004,2]
[408740255,1774183854099,-151.31,0.0004,2]
[408740256,1774183854109,-151.31,0.0004,2]
[408740257,1774183854118,-151.31,0.0004,2]
[408740258,1774183854127,-151.31,0.0004,2]
[408740259,1774183854137,-151.31,0.0004,2]
[408740260,1774183854146,-151.31,0.0004,2]
[408740261,1774183854155,-151.31,0.0004,2]
[408740262,1774183854164,-151.31,0.0004,2]
[408740263,1774183854173,-151.31,0.0004,2]
[408740264,1774183854182,-151.31,0.0004,2]
[408740265,1774183854191,-151.31,0.0004,2]
[408740266,1774183854199,-151.31,0.0004,2]
[408740267,1774183854209,-151.31,0.0004,2]
[408740268,1774183854218,-151.31,0.0004,2]
[408740269,1774183854227,-151.31,0.0004,2]
[408740270,1774183854236,-151.31,0.0004,2]
[408740271,1774183854245,-151.31,0.0004,2]
[408740272,1774183854254,-1275.0405981,0.0004,120]
[408740273,1774183854263,-1000.0,0.0004,2]
[408740274,1774183854273,-151.5,0.00040063,2]
[408740275,1774183854283,-2000.0,0.000401,2]
[408740276,1774183854292,-1093.0,0.00040133,30]
[408740277,1774183854301,-150.0,0.00040165,2]
[408740278,1774183854310,-782.08260827,0.00040181,7]
[408740279,1774183854319,-200.0,0.00040206,20]
[408740280,1774183854330,-1990.0,0.00040273,120]
[408740281,1774183854339,-150.0,0.000403,62]
[408740282,1774183854348,-58648.31,0.000403,7]
[408740283,1774183854358,-1728.2238806,0.000403,120]
[408740284,1774183854367,-151.0,0.00040315,60]
[408740285,1774183854376,-500.0,0.00040501,120]
[408740286,1774183854386,-964.36669259,0.00040508,2]
[408740287,1774183854397,-801.85129955,0.00040508,2]
[408740288,1774183854409,-150.0,0.00040522,30]
[408740289,1774183854418,-150.0,0.00040536,30]
[408740290,1774183854427,-206.0,0.00040536,30]
[408740291,1774183854436,-1990.0,0.00040547,120]
[408740292,1774183854446,-550.0,0.00040548,5]
[408740293,1774183854455,-524.65,0.00040553,2]
[408740294,1774183854464,-600.0,0.0004066,30]
[408740295,1774183854475,-600.0,0.0004066,30]
[408740296,1774183854485,-516.0,0.0004066,30]
[408740297,1774183854494,-1217.0,0.00040682,120]
[408740298,1774183854504,-852.0,0.00040682,120]
[408740299,1774183854513,-597.0,0.00040682,120]
[408740300,1774183854522,-417.0,0.00040682,120]
[408740301,1774183854531,-152.0,0.00040683,3]
[408740302,1774183854540,-4171.87812651,0.000408,60]
[408740303,1774183854551,-153.0,0.000408,120]
[408740304,1774183854560,-1990.0,0.00040821,120]
[408740305,1774183854569,-5000.0,0.00040822,2]
[408740306,1774183854580,-5000.0,0.00040822,2]
[408740307,1774183854589,-956.0,0.00040822,2]
[408740308,1774183854598,-250.0,0.00040833,84]
[408740309,1774183854607,-150.0,0.00040835,120]
[408740310,1774183854617,-192.0,0.00040835,120]
[408740311,1774183854628,-507.0,0.00040847,25]
[408740312,1774183854637,-1044.0,0.00040886,2]
[408740313,1774183854646,-1345.0,0.00040886,2]
[408740314,1774183854657,-3514.0,0.00040886,2]
[408740315,1774183854666,-1261.0,0.00040886,2]
[408740316,1774183854676,-924.0,0.00040886,2]
[408740317,1774183854685,-1215.0,0.00040886,2]
[408740318,1774183854695,-150.0,0.00040886,2]
[408740319,1774183854705,-6008.0,0.00040886,2]
[408740320,1774183854714,-208.0,0.0004093,30]
[408740321,1774183854723,-1093.0,0.0004094,30]
[408740322,1774183854732,-16579.0,0.0004095,60]
[408740323,1774183854743,-7016.98727431,0.00041,30]
[408740324,1774183854752,-930.0,0.00041,30]
[408740325,1774183854762,-8271.74823028,0.00041,120]
[408740326,1774183854771,-436.50021384,0.00041,5]
[408740327,1774183854780,-1652.13,0.00041,90]
[408740328,1774183854790,-2652.77,0.00041,90]
[408740329,1774183854800,-187.66,0.00041,90]
[408740330,1774183854810,-2673.0,0.00041,120]
[408740331,1774183854819,-25700.0,0.00041,60]
[408740332,1774183854829,-885.91,0.00041,120]
[408740333,1774183854839,-855.52,0.00041,120]
[408740334,1774183854848,-1189.54,0.00041,120]
[408740335,1774183854858,-521.22113536,0.00041,30]
[408740336,1774183854868,-1294.04,0.00041,120]
[408740337,1774183854877,-2812.79,0.00041,120]
[408740338,1774183854886,-3366.3,0.00041068,120]
[408740339,1774183854896,-2952.6,0.00041068,120]
[408740340,1774183855016,-1949.5,0.00041068,120]
[408740341,1774183855029,-1535.1,0.00041068,120]
[408740342,1774183855040,-1990.0,0.00041095,120]
[408740343,1774183855051,-150.0,0.00041096,10]
[408740344,1774183855060,-1698.04,0.00041096,60]
[408740345,1774183855070,-1147.0,0.00041096,60]
[408740346,1774183855080,-349.0,0.00041096,120]
[408740347,1774183855090,-208.101972,0.00041096,120]
[408740348,1774183855100,-361.002278,0.00041096,120]
[408740349,1774183855109,-361.002278,0.00041096,120]
[408740350,1774183855119,-361.002278,0.00041096,120]
[408740351,1774183855128,-361.002278,0.00041096,120]
[408740352,1774183855140,-361.002278,0.00041096,120]
[408740353,1774183855152,-361.002278,0.00041096,120]
[408740354,1774183855161,-361.002278,0.00041096,120]
[408740355,1774183855171,-361.002278,0.00041096,120]
[408740356,1774183855180,-155.0,0.00041096,60]
[408740357,1774183855189,-350.0,0.00041096,120]
[408740358,1774183855198,-156.11335943,0.00041096,10]
[408740359,1774183855207,-200.0,0.00041096,20]
[408740360,1774183855217,-500.0,0.00041096,60]
[408740361,1774183855226,-500.0,0.00041096,60]
[408740362,1774183855235,-500.0,0.00041096,60]
[408740363,1774183855245,-500.0,0.00041096,60]
[408740364,1774183855254,-500.0,0.00041096,60]
[408740365,1774183855263,-500.0,0.00041096,60]
[408740366,1774183855273,-500.0,0.00041096,60]
[408740367,1774183855283,-500.0,0.00041096,60]
[408740368,1774183855293,-500.0,0.00041096,60]
[408740369,1774183855302,-500.0,0.00041096,60]
[408740370,1774183855312,-500.0,0.00041096,60]
[408740371,1774183855321,-500.0,0.00041096,60]
[408740372,1774183855331,-500.0,0.00041096,60]
[408740373,1774183855340,-500.0,0.00041096,60]
[408740374,1774183855350,-500.0,0.00041096,60]
[408740375,1774183855359,-568.26918208,0.00041096,60]
[408740376,1774183855368,-442.82,0.000411,120]
[408740377,1774183855377,-155.0,0.000411,120]
[408740378,1774183855387,-362.72905046,0.00041111,30]
[408740379,1774183855397,-287.13211545,0.00041112,2]
[408740380,1774183855409,-681.16768143,0.000412,30]
[408740381,1774183855419,-150.0,0.00041233,30]
[408740382,1774183855428,-150.0,0.000413,65]
[408740383,1774183855439,-151.0,0.00041315,60]
[408740384,1774183855448,-200.0,0.00041359,30]
[408740385,1774183855458,-342.0,0.00041359,30]
[408740386,1774183855467,-1990.0,0.00041369,120]
[408740387,1774183855478,-500.0,0.000414,120]
[408740388,1774183855488,-210.40762629,0.00041468,120]
[408740389,1774183855497,-151.0,0.00041497,14]
[408740390,1774183855506,-151.0,0.00041497,14]
[408740391,1774183855516,-250000.0,0.000415,120]
[408740392,1774183855525,-151.0,0.000415,120]
[408740393,1774183855534,-151.0,0.000415,120]
[408740394,1774183855543,-151.0,0.000415,120]
[408740395,1774183855553,-151.0,0.000415,120]
[408740396,1774183855562,-623.583206,0.000415,120]
[408740397,1774183855572,-623.583206,0.000415,120]
[408740398,1774183855582,-623.583206,0.000415,120]
[408740399,1774183855591,-623.583206,0.000415,120]
[408740400,1774183855600,-151.0,0.000415,120]
[408740401,1774183855609,-151.0,0.000415,60]
[408740402,1774183855618,-163.838437,0.000415,60]
[408740403,1774183855627,-566.81434,0.000415,120]
[408740404,1774183855637,-566.81434,0.000415,120]
[408740405,1774183855646,-566.81434,0.000415,120]
[408740406,1774183855655,-566.81434,0.000415,120]
[408740407,1774183855665,-220.734885,0.000415,120]
[408740408,1774183855675,-220.734885,0.000415,120]
[408740409,1774183855684,-220.734885,0.000415,120]
[408740410,1774183855693,-220.734885,0.000415,120]
[408740411,1774183855702,-330.269218,0.000415,120]
[408740412,1774183855712,-330.269218,0.000415,120]
[408740413,1774183855721,-330.269218,0.000415,120]
[408740414,1774183855730,-330.269218,0.000415,120]
[408740415,1774183855740,-1057.162959,0.000415,120]
[408740416,1774183855749,-151.0,0.000415,120]
[408740417,1774183855759,-1057.162959,0.000415,120]
[408740418,1774183855768,-1057.162959,0.000415,120]
[408740419,1774183855777,-1057.162959,0.000415,120]
[408740420,1774183855787,-151.0,0.000415,120]
[408740421,1774183855796,-151.0,0.000415,120]
[408740422,1774183855806,-168.381018,0.000415,120]
[408740423,1774183855815,-168.381018,0.000415,120]
[408740424,1774183855824,-168.381018,0.000415,120]
[408740425,1774183855834,-168.381018,0.000415,120]
[408740426,1774183855844,-151.0,0.000415,120]
[408740427,1774183855853,-151.0,0.000415,120]
[408740428,1774183855862,-361.002278,0.000415,120]
[408740429,1774183855871,-361.002278,0.000415,120]
[408740430,1774183855880,-361.002278,0.000415,120]
[408740431,1774183855889,-361.002278,0.000415,120]
[408740432,1774183855899,-151.0,0.000415,120]
[408740433,1774183855909,-151.0,0.000415,120]
[408740434,1774183855918,-151.0,0.000415,120]
[408740435,1774183855927,-151.0,0.000415,120]
[408740436,1774183855936,-188.740999,0.000415,120]
[408740437,1774183855945,-188.740999,0.000415,120]
[408740438,1774183855954,-188.740999,0.000415,120]
[408740439,1774183855966,-188.740999,0.000415,120]
[408740440,1774183855976,-151.0,0.000415,120]
[408740441,1774183855986,-245.209247,0.000415,120]
[408740442,1774183855996,-245.209247,0.000415,120]
[408740443,1774183856006,-245.209247,0.000415,120]
[408740444,1774183856016,-188.111747,0.000415,120]
[408740445,1774183856026,-188.111747,0.000415,120]
[408740446,1774183856036,-245.209247,0.000415,120]
[408740447,1774183856045,-188.111747,0.000415,120]
[408740448,1774183856056,-188.111747,0.000415,120]
[408740449,1774183856065,-331.558085,0.000415,120]
[408740450,1774183856076,-331.558085,0.000415,120]
[408740451,1774183856086,-331.558085,0.000415,120]
[408740452,1774183856095,-331.558085,0.000415,120]
[408740453,1774183856104,-155.405391,0.000415,120]
[408740454,1774183856114,-155.405391,0.000415,120]
[408740455,1774183856123,-155.405391,0.000415,120]
[408740456,1774183856133,-155.405391,0.000415,120]
[408740457,1774183856143,-151.841544,0.000415,7]
[408740458,1774183856153,-151.841544,0.000415,7]
[408740459,1774183856163,-151.841544,0.000415,7]
[408740460,1774183856172,-151.841544,0.000415,7]
[408740461,1774183856182,-273.46439,0.000415,120]
[408740462,1774183856191,-273.46439,0.000415,120]
[408740463,1774183856201,-273.46439,0.000415,120]
[408740464,1774183856210,-273.46439,0.000415,120]
[408740465,1774183856221,-216.0,0.000415,120]
[408740466,1774183856232,-216.0,0.000415,120]
[408740467,1774183856241,-216.0,0.000415,120]
[408740468,1774183856252,-216.0,0.000415,120]
[408740469,1774183856261,-752.17639,0.000415,120]
[408740470,1774183856270,-752.17639,0.000415,120]
[408740471,1774183856280,-752.17639,0.000415,120]
[408740472,1774183856289,-752.17639,0.000415,120]
[408740473,1774183856298,-151.0,0.000415,30]
[408740474,1774183856308,-151.0,0.000415,30]
[408740475,1774183856317,-151.0,0.000415,120]
[408740476,1774183856326,-151.0,0.000415,120]
[408740477,1774183856335,-444.613459,0.000415,28]
[408740478,1774183856344,-444.613459,0.000415,28]
[408740479,1774183856354,-444.613459,0.000415,28]
[408740480,1774183856363,-444.613459,0.000415,28]
[408740481,1774183856372,-316.805713,0.000415,120]
[408740482,1774183856381,-316.805713,0.000415,120]
[408740483,1774183856390,-316.805713,0.000415,120]
[408740484,1774183856403,-316.805713,0.000415,120]
[408740485,1774183856413,-753.746533,0.000415,120]
[408740486,1774183856422,-753.746533,0.000415,120]
[408740487,1774183856433,-753.746533,0.000415,120]
[408740488,1774183856446,-753.746533,0.000415,120]
[408740489,1774183856455,-992.82811071,0.000415,120]
[408740490,1774183856465,-151.0,0.000415,120]
[408740491,1774183856476,-655.554488,0.000415,120]
[408740492,1774183856485,-655.554488,0.000415,120]
[408740493,1774183856495,-277.0,0.00041525,30]
[408740494,1774183856504,-250.0,0.00041548,2]
[408740495,1774183856514,-250.0,0.00041548,2]
[408740496,1774183856523,-222.0,0.00041548,2]
[408740497,1774183856533,-153.0,0.000416,120]
[408740498,1774183856542,-514.61115246,0.000416,120]
[408740499,1774183856551,-1990.0,0.00041643,120]
[408740500,1774183856561,-250.0,0.00041644,10]
[408740501,1774183856570,-250.0,0.00041656,91]
[408740502,1774183856579,-166.57052143,0.00041657,7]
[408740503,1774183856588,-1060.73,0.000417,60]
[408740504,1774183856598,-1359.35,0.000417,60]
[408740505,1774183856608,-599.43,0.000417,60]
[408740506,1774183856619,-2833.01,0.000417,60]
[408740507,1774183856629,-2897.46,0.000417,60]
[408740508,1774183856638,-1093.0,0.00041747,30]
[408740509,1774183856649,-443.83,0.00041786,14]
[408740510,1774183856658,-500.0,0.00041797,26]
[408740511,1774183856667,-532.79,0.00041797,26]
[408740512,1774183856677,-403.34,0.000418,120]
[408740513,1774183856686,-222.32847894,0.000418,90]
[408740514,1774183856696,-500.0,0.00041817,26]
[408740515,1774183856706,-500.0,0.00041817,26]
[408740516,1774183856715,-500.0,0.00041817,26]
[408740517,1774183856724,-500.0,0.00041817,26]
[408740518,1774183856734,-500.0,0.00041817,26]
[408740519,1774183856743,-500.0,0.00041817,26]
[408740520,1774183856753,-500.0,0.00041817,26]
[408740521,1774183856762,-500.0,0.00041817,26]
[408740522,1774183856772,-331.04,0.00041817,26]
[408740523,1774183856781,-1990.0,0.00041917,120]
[408740524,1774183856791,-150.0,0.00041944,30]
[408740525,1774183856801,-507.0,0.00041966,26]
[408740526,1774183856811,-500.0,0.00041999,120]
[408740527,1774183856820,-500.0,0.00041999,120]
[408740528,1774183856830,-154.83,0.00042,120]
[408740529,1774183856840,-256.0,0.00042,120]
[408740530,1774183856850,-500.0,0.00042,120]
[408740531,1774183856859,-573.0,0.00042,60]
[408740532,1774183856869,-400.0,0.00042,120]
[408740533,1774183856878,-701.4622154,0.00042,120]
[408740534,1774183856888,-153.78242204,0.00042,120]
[408740535,1774183856897,-178.0141159,0.00042,120]
[408740536,1774183856907,-896.5781532,0.00042,120]
[408740537,1774183856916,-1317.08558741,0.00042,2]
[408740538,1774183856926,-340.50514948,0.00042,120]
[408740539,1774183856935,-500.0,0.00042,2]
[408740540,1774183856945,-1518.92093719,0.00042,30]
[408740541,1774183856955,-516.89857949,0.00042,120]
[408740542,1774183856964,-209.39498565,0.00042,120]
[408740543,1774183856973,-54394.81744562,0.00042,60]
[408740544,1774183856983,-2217.65869465,0.00042,14]
[408740545,1774183856993,-892.3544652,0.00042,120]
[408740546,1774183857002,-484.0,0.00042,120]
[408740547,1774183857012,-2861.48,0.00042,90]
[408740548,1774183857021,-184.13,0.00042,90]
[408740549,1774183857387,-1610.55,0.00042,120]
[408740550,1774183857409,-293.0,0.00042,120]
[408740551,1774183857419,-293.0,0.00042,120]
[408740552,1774183857429,-293.0,0.00042,120]
[408740553,1774183857439,-293.0,0.00042,120]
[408740554,1774183857449,-293.0,0.00042,120]
[408740555,1774183857459,-293.0,0.00042,120]
[408740556,1774183857469,-293.0,0.00042,120]
[408740557,1774183857480,-293.0,0.00042,120]
[408740558,1774183857489,-293.0,0.00042,120]
[408740559,1774183857499,-293.0,0.00042,120]
[408740560,1774183857509,-293.0,0.00042,120]
[408740561,1774183857519,-293.0,0.00042,120]
[408740562,1774183857530,-293.0,0.00042,120]
[408740563,1774183857540,-293.0,0.00042,120]
[408740564,1774183857549,-293.0,0.00042,120]
[408740565,1774183857559,-199.76,0.00042,120]
[408740566,1774183857569,-492.27,0.00042,90]
[408740567,1774183857579,-1347.94,0.00042,120]
[408740568,1774183857589,-2291.53,0.00042,120]
[408740569,1774183857599,-2376.94,0.00042,120]
[408740570,1774183857608,-500.0,0.00042,120]
[408740571,1774183857619,-426.3711672,0.0004201,30]
[408740572,1774183857629,-150.91847108,0.0004205,2]
[408740573,1774183857640,-155.0,0.000421,120]
[408740574,1774183857649,-164.0,0.0004211,30]
[408740575,1774183857660,-323.68754575,0.00042121,120]
[408740576,1774183857670,-151.5,0.00042152,2]
[408740577,1774183857681,-150.0,0.00042173,120]
[408740578,1774183857690,-1990.0,0.00042191,120]
[408740579,1774183857700,-500.0,0.00042191,120]
[408740580,1774183857711,-488.93990965,0.00042191,120]
[408740581,1774183857722,-350.0,0.00042192,10]
[408740582,1774183857731,-2984.61,0.00042193,120]
[408740583,1774183857741,-150.0,0.00042265,14]
[408740584,1774183857751,-151.0,0.00042297,14]
[408740585,1774183857761,-150.0,0.000423,68]
[408740586,1774183857771,-16579.0,0.000423,60]
[408740587,1774183857780,-151.0,0.000423,14]
[408740588,1774183857790,-151.0,0.000423,14]
[408740589,1774183857799,-151.0,0.000423,14]
[408740590,1774183857809,-156.1814,0.000423,2]
[408740591,1774183857818,-152.0,0.00042314,4]
[408740592,1774183857828,-151.0,0.00042315,60]
[408740593,1774183857838,-250.0,0.00042352,92]
[408740594,1774183857848,-200.0,0.00042398,8]
[408740595,1774183857858,-800.0,0.00042427,13]
[408740596,1774183857867,-800.0,0.00042427,13]
[408740597,1774183857877,-800.0,0.00042427,13]
[408740598,1774183857887,-800.0,0.00042427,13]
[408740599,1774183857897,-800.0,0.00042427,13]
[408740600,1774183857906,-800.0,0.00042427,13]
[408740601,1774183857916,-800.0,0.00042427,13]
[408740602,1774183857926,-800.0,0.00042427,13]
[408740603,1774183857935,-800.0,0.00042427,13]
[408740604,1774183857947,-800.0,0.00042427,13]
[408740605,1774183857956,-800.0,0.00042427,13]
[408740606,1774183857966,-800.0,0.00042427,13]
[408740607,1774183857976,-800.0,0.00042427,13]
[408740608,1774183857985,-800.0,0.00042427,13]
[408740609,1774183857995,-800.0,0.00042427,13]
[408740610,1774183858005,-800.0,0.00042427,13]
[408740611,1774183858014,-800.0,0.00042427,13]
[408740612,1774183858024,-800.0,0.00042427,13]
[408740613,1774183858034,-800.0,0.00042427,13]
[408740614,1774183858043,-800.0,0.00042427,13]
[408740615,1774183858053,-800.0,0.00042427,13]
[408740616,1774183858062,-800.0,0.00042427,13]
[408740617,1774183858071,-800.0,0.00042427,13]
[408740618,1774183858082,-800.0,0.00042427,13]
[408740619,1774183858092,-800.0,0.00042427,13]
[408740620,1774183858102,-800.0,0.00042427,13]
[408740621,1774183858111,-800.0,0.00042427,13]
[408740622,1774183858120,-800.0,0.00042427,13]
[408740623,1774183858129,-800.0,0.00042427,13]
[408740624,1774183858138,-800.0,0.00042427,13]
[408740625,1774183858147,-800.0,0.00042427,13]
[408740626,1774183858157,-800.0,0.00042427,13]
[408740627,1774183858166,-800.0,0.00042427,13]
[408740628,1774183858176,-800.0,0.00042427,13]
[408740629,1774183858185,-800.0,0.00042427,13]
[408740630,1774183858194,-800.0,0.00042427,13]
[408740631,1774183858203,-800.0,0.00042427,13]
[408740632,1774183858213,-800.0,0.00042427,13]
[408740633,1774183858222,-260.0,0.00042427,13]
[408740634,1774183858231,-500.0,0.00042427,14]
[408740635,1774183858240,-500.0,0.00042427,14]
[408740636,1774183858249,-500.0,0.00042427,14]
[408740637,1774183858258,-500.0,0.00042427,14]
[408740638,1774183858267,-500.0,0.00042427,14]
[408740639,1774183858277,-500.0,0.00042427,14]
[408740640,1774183858286,-500.0,0.00042427,14]
[408740641,1774183858295,-500.0,0.00042427,14]
[408740642,1774183858304,-500.0,0.00042427,14]
[408740643,1774183858313,-500.0,0.00042427,14]
[408740644,1774183858322,-500.0,0.00042427,14]
[408740645,1774183858334,-500.0,0.00042427,14]
[408740646,1774183858343,-500.0,0.00042427,14]
[408740647,1774183858352,-500.0,0.00042427,14]
[408740648,1774183858361,-500.0,0.00042427,14]
[408740649,1774183858370,-500.0,0.00042427,14]
[408740650,1774183858380,-500.0,0.00042427,14]
[408740651,1774183858390,-500.0,0.00042427,14]
[408740652,1774183858406,-500.0,0.00042427,14]
[408740653,1774183858416,-500.0,0.00042427,14]
[408740654,1774183858426,-500.0,0.00042427,14]
[408740655,1774183858436,-500.0,0.00042427,14]
[408740656,1774183858447,-500.0,0.00042427,14]
[408740657,1774183858457,-500.0,0.00042427,14]
[408740658,1774183858466,-500.0,0.00042427,14]
[408740659,1774183858477,-500.0,0.00042427,14]
[408740660,1774183858487,-500.0,0.00042427,14]
[408740661,1774183858496,-500.0,0.00042427,14]
[408740662,1774183858505,-500.0,0.00042427,14]
[408740663,1774183858515,-500.0,0.00042427,14]
[408740664,1774183858525,-500.0,0.00042427,14]
[408740665,1774183858534,-500.0,0.00042427,14]
[408740666,1774183858543,-500.0,0.00042427,14]
[408740667,1774183858554,-500.0,0.00042427,14]
[408740668,1774183858563,-500.0,0.00042427,14]
[408740669,1774183858573,-500.0,0.00042427,14]
[408740670,1774183858582,-500.0,0.00042427,14]
[408740671,1774183858592,-500.0,0.00042427,14]
[408740672,1774183858602,-500.0,0.00042427,14]
[408740673,1774183858611,-500.0,0.00042427,14]
[408740674,1774183858620,-500.0,0.00042427,14]
[408740675,1774183858629,-500.0,0.00042427,14]
[408740676,1774183858638,-500.0,0.00042427,14]
[408740677,1774183858647,-500.0,0.00042427,14]
[408740678,1774183858656,-500.0,0.00042427,14]
[408740679,1774183858665,-500.0,0.00042427,14]
[408740680,1774183858675,-500.0,0.00042427,14]
[408740681,1774183858684,-584.0,0.00042427,14]
[408740682,1774183858693,-200.0,0.00042427,2]
[408740683,1774183858703,-200.0,0.00042427,2]
[408740684,1774183858712,-200.0,0.00042427,2]
[408740685,1774183858721,-200.0,0.00042427,2]